{"text_format":"2","workbook":"xlsx","n_sheets":6,"sheets":["PFP","PFP1.1_Topo","PFP1.2_Geo","PFP2.1_FatorKa","PFP2.2_FatorKb","PFP3_FatorKc"],"not_rendered":{"charts":0,"images":0,"macros":0,"external_links":0,"defined_names":3,"comments":1,"pivot_tables":0},"unopened":[],"bounds":{"document_bytes":16777216,"sheet_cells":100000,"run_cost":"one","rows_first":2000,"rows_last":500,"rows_between":2000,"halvings":0,"cell_chars":16384,"cell_head_chars":4096},"cells_cut":0,"cells_raw":0,"read":"whole","date_system":"1900"}

{"sheet":"PFP","index":0,"n_rows":42,"n_cols":11,"rows_kept":42,"cut":false,"hidden":false,"merged":[[27,7,27,10],[27,0,27,6],[26,7,26,10],[26,0,26,6],[33,0,33,10],[28,0,28,6],[28,7,28,10],[30,0,30,10],[41,0,41,10],[34,0,34,10],[36,0,36,10],[29,0,29,10],[35,0,35,10],[31,0,31,10],[37,0,37,10],[38,0,38,10],[39,0,39,10],[40,0,40,10],[32,0,32,10],[0,0,1,8],[4,5,4,8],[0,9,0,10],[1,9,1,10],[4,9,4,10],[2,0,2,10],[3,0,3,10],[4,0,4,4],[5,9,5,10],[5,5,5,8],[25,0,25,6],[25,7,25,10],[5,0,5,4],[24,0,24,6],[24,7,24,10]]}
["PROPOSTA FINANCEIRA DO PROJETO",{"$nulls":8},"CODIGO:"]
[{"$nulls":9},"PFP"]
["NOME DA CONSULTORA:"]
[]
["PROJETO:",{"$nulls":4},"CONTRATANTE:",null,null,null,"BASE: Nov/2020"]
["Projeto Executivo e Estudos Complementares dos Sistemas de Adução na Região do Seridó no Estado do Rio Grande do Norte ",{"$nulls":4},"CODEVASF (SEDE)",null,null,null,"CODE: Jan/2020\nPROP: Nov/2020"]
["Base","Cod1","Cod2","Categoria / Insumo","Uni","Qde","CUD","PU","FatorK","CT","PT"]
["CODE","MO2","P0","Engenheiro Sênior","mês",11.5,null,{"$f":"ROUND(I8*G8,2)","v":0},{"$f":"PFP2.2_FatorKb!$E$36","v":1},{"$f":"ROUND(F8*G8,2)","v":0},{"$f":"ROUND(F8*H8,2)","v":0}]
["CODE","MO2","P1","Engenheiro Pleno","mês",46,null,0,{"$f":"PFP2.2_FatorKb!$E$36","v":1},0,0]
["CODE","MO1","P2","Engenheiro Médio","mês",46,null,0,{"$f":"PFP2.1_FatorKa!$E$36","v":1},0,0]
["CODE","MO1","P3","Engenheiro Júnior","mês",84,null,0,{"$f":"PFP2.1_FatorKa!$E$36","v":1},0,0]
["PROP","MO1","S1","Analista Pleno","mês",2,null,0,{"$f":"PFP2.1_FatorKa!$E$36","v":1},0,0]
["PROP","MO1","S2","Analista Médio","mês",4,null,0,{"$f":"PFP2.1_FatorKa!$E$36","v":1},0,0]
["PROP","MO1","S3","Analista Júnior","mês",4,null,0,{"$f":"PFP2.1_FatorKa!$E$36","v":1},0,0]
["CODE","MO1","T2","Técnico Pleno","mês",46,null,0,{"$f":"PFP2.1_FatorKa!$E$36","v":1},0,0]
["CODE","MO1","T3","Técnico Junior","mês",92,null,0,{"$f":"PFP2.1_FatorKa!$E$36","v":1},0,0]
["CODE","MO1","A1","Administrativo (Secretariado)","mês",23,null,0,{"$f":"PFP2.1_FatorKa!$E$36","v":1},0,0]
["CODE","DP","V1","Diárias","dia",615,null,0,{"$f":"PFP3_FatorKc!$E$17","v":1},0,0]
["CODE","DP","V3","Caminhonete 2.8 4x4 Diesel","dia",246,null,0,{"$f":"PFP3_FatorKc!$E$17","v":1},0,0]
["PROP","DP","V4","Passagens Aéreas (ida e volta)","un",115,null,0,{"$f":"PFP3_FatorKc!$E$17","v":1},0,0]
["CODE","EM","M1","Relatório Parcial","un",33,null,0,{"$f":"PFP3_FatorKc!$E$17","v":1},0,{"$f":"ROUND(F21*H21,2)","v":0}]
["CODE","EM","M2","Relatório Final","un",33,null,0,{"$f":"PFP3_FatorKc!$E$17","v":1},0,0]
["CODE","SU","TP","Total Serviços Cartográficos","un",1,"-",{"$f":"PFP1.1_Topo!G17","v":0},"-","-",0]
["CODE","SU","GT","Total Serviços Geotécnicos","un",1,"-",{"$f":"PFP1.2_Geo!G39","v":0},"-","-",0]
["TOTAL DOS CUSTOS DIRETOS",{"$nulls":6},{"$f":"SUM(J8:J24)","v":0}]
["TOTAL DOS ENCARGOS E DISPESAS DIVERSAS",{"$nulls":6},{"$f":"H27-H25","v":0}]
["TOTAL DA PROPOSTA A PREÇO GLOBAL",{"$nulls":6},{"$f":"SUM(K8:K22)","v":0}]
["TOTAL DA PROPOSTA A PREÇO UNITÁRIO",{"$nulls":6},{"$f":"SUM(K23:K24)","v":0}]
["TOTAL DA PROPOSTA",{"$nulls":6},{"$f":"H27+H28","v":0}]
["OBSERVAÇÃO:"]
["Alocar os Insumos MO, com respectivo FatorK, dentro da categoria de vínculo contratual (com ou sem) de cada tipo de profissional"]
["Uni - unidade de medição do insumo;"]
["Qde - Quantidade do Insumo (não pode ocorrer alteração pela Licitante)"]
["CUD - Custo Unitário Direto do Insumo (sem encargos, taxas e impostos, valor não pode ser maior que o Orçado pela Codevasf)"]
["CT - Custo Total (sem encargos, taxas e impostos) - CT = Qde x CUD"]
["FatorK - Taxa de Ressarcimento de Despesas e Encargos (detalhar composição nas Planilhas \"PFP2.1\", \"PFP2.2\", \"PFP3\")"]
["PU - Preço Unitário do Insumo (incluído encargos, taxas e impostos) - PU = CUD x FatorK"]
["PT - Preço Total do Insumo (incluído encargos, taxas e impostos) - PT = Qde x PU"]
["P - Profissionais nível superior nas áreas de Engenharia, Química, Arquitetura, Agronomia e Veterinária, conforme disposições da Lei 4.950-A/66"]
["S - Profissionais de nível superior nas demais áreas de atuação, incluindo Arqueólogo, Biólogo, Geógrafo e Socioólogo"]
["T - Profissionais de nível médio técnico nas diversas áreas de atuação"]
["A - Profissionais de nível médio de apoio técnico-administrativo"]

{"sheet":"PFP1.1_Topo","index":1,"n_rows":22,"n_cols":7,"rows_kept":22,"cut":false,"hidden":false,"merged":[[20,0,20,6],[21,0,21,6],[17,0,17,6],[18,0,18,6],[19,0,19,6],[4,0,4,3],[2,0,2,6],[3,0,3,6],[16,0,16,5],[0,0,1,5],[5,0,5,3],[4,4,4,5],[5,4,5,5]]}
["SERVIÇOS TOPOGRÁFICOS/CARTOGRÁFICOS",{"$nulls":5},"CODIGO:"]
[{"$nulls":6},"PFP-1.1"]
["NOME DA EMPRESA:"]
[]
["PROJETO:",null,null,null,"CONTRATANTE:",null,"BASE: Nov/2020"]
[{"$f":"PFP!A6","v":"Projeto Executivo e Estudos Complementares dos Sistemas de Adução na Região do Seridó no Estado do Rio Grande do Norte "},null,null,null,"CODEVASF (SEDE)",null,"CODE: Jan/2020"]
["Cod.","Base","Insumos","Uni","Qde","Preço Unitário (PU)","Preço Total (PT)"]
["TP08","CODE","Nivelamento Geométrico classe IIN","km",200,null,{"$f":"ROUND(F8*E8,2)","v":0}]
["TP16.1","CODE","Poligonal Classe IIP","km",100,null,0]
["TP19","CODE","Pontos GPS de dupla frequencia (L1/L2)","un ",30,null,0]
["TP20","CODE","Levantamento Ecobatimetrico","ha ",4,null,0]
["TP21","CODE","Levantamento Topobatimétrico","km",4,null,0]
["TP27","CODE","Marco de Concreto (12x18x60cm)","un ",30,null,0]
["TP28","CODE","Barrote de Madeira (10x10x50cm)","un ",500,null,0]
["TP29","CODE","Piquetes de Madeira (2x2x20cm)","un ",5000,null,0]
["PD06","CODE","Picada Manual p/ levantamento TP","km",80,null,{"$f":"ROUND(F16*E16,2)","v":0}]
["TOTAL SERVIÇOS TOPOGRÁFICOS",{"$nulls":5},{"$f":"SUM(G8:G16)","v":0}]
["OBSERVAÇÃO:"]
["Uni - unidade de medição do insumo;"]
["Qde - Quantidade do Insumo (não pode ocorrer alteração pela Licitante)"]
["PU - Preço Unitário (composições padrão da Codevasf, já incluso o FatorK)"]
["PT - Preço Total (incluído encargos, taxas e impostos) - PT = Qde x PU"]

{"sheet":"PFP1.2_Geo","index":2,"n_rows":44,"n_cols":7,"rows_kept":44,"cut":false,"hidden":false,"merged":[[38,0,38,5],[42,0,42,6],[5,0,5,3],[5,4,5,5],[43,0,43,6],[39,0,39,6],[40,0,40,6],[41,0,41,6],[4,0,4,3],[4,4,4,5],[2,0,2,6],[3,0,3,6],[0,0,1,5]]}
["SERVIÇOS GEOLÓGICOS/GEOTÉCNICOS",{"$nulls":5},"CODIGO:"]
[{"$nulls":6},"PFP-1.2"]
["NOME DA EMPRESA:"]
[]
["PROJETO:",null,null,null,"CONTRATANTE:",null,"BASE: Nov/2020"]
[{"$f":"PFP!A6","v":"Projeto Executivo e Estudos Complementares dos Sistemas de Adução na Região do Seridó no Estado do Rio Grande do Norte "},null,null,null,"CODEVASF (SEDE)",null,"CODE: Jan/2020"]
["Cod.","Base","Insumos","Uni","Qde","Preço Unitário (PU)","Preço Total (PT)"]
["GT07","CODE","Sondagem Percussão: (Des)Mobilização","un",18,null,{"$f":"ROUND(F8*E8,2)","v":0}]
["GT08","CODE","Sondagem Percursão: com SPT","m",{"$f":"E8*50","v":900},null,0]
["GT09","CODE","Sondagem Percursão: Desloc/Instalação 0-200 m","un",30,null,0]
["GT10","CODE","Sondagem Percursão: Desloc/Instalação 201-500 m","un",60,null,0]
["GT11","CODE","Sondagem Percursão: Desloc/Instalação >500 m","un",80,null,0]
["GT13","CODE","Sondagem Trado 4''","m",400,null,0]
["GT15","CODE","Ensaio: Umidade Natural ","un",400,null,0]
["GT16","CODE","Ensaio: Densidade Natural","un",400,null,0]
["GT17","CODE","Ensaio: Limite de Liquidez","un",400,null,0]
["GT18","CODE","Ensaio: Limite de Plasticidade","un",400,null,0]
["GT19","CODE","Ensaio: Granulometria por Peneiramento","un",400,null,0]
["GT20","CODE","Ensaio: Granulometria por Sedimentação","un",400,null,0]
["GT21","CODE","Ensaio: Compactação Proctor Normal","un",400,null,0]
["GT22","CODE","Ensaio: Massa Especifica Real dos Grãos","un",400,null,0]
["GT23","CODE","Ensaio: Adensamento Oedométrico","un",20,null,0]
["GT24","CODE","Ensaio: Triaxial UU ñ consolidado ñ drenado","un",5,null,0]
["GT25","CODE","Ensaio: Triaxial CU conslidado ñ drenado","un",40,null,0]
["GT26","CODE","Ensaio: Expansão colapsividade em aneis","un",100,null,0]
["GT27","CODE","Ensaio: Expansão amostra indeformada com pressão de expansão","un",40,null,0]
["GT28","CODE","Ensaio: Dispersão Granulometria Comparativa","un",100,null,0]
["GT29","CODE","Ensaio: Dispersão Crumb Test","un",100,null,0]
["GT30","CODE","Ensaio: Infiltração","un",30,null,0]
["GT31","CODE","Ensaio: Perda de Água 5 estágios","un",30,null,0]
["GT32","CODE","Ensaio: Análise Quimica da Areia","un",6,null,0]
["GT33","CODE","Ensaio: Mineralogia da Areia","un",20,null,0]
["GT34","CODE","Ensaio: Análise Petrográfica/Mineralogia","un",6,null,0]
["GT35","CODE","Ensaio: Abrasão Los Angeles","un",6,null,0]
["GT36","CODE","Ensaio: Reatividade Potencial","un",6,null,0]
["GT37","CODE","Ensaio: Permeabilidade Vertical de Carga Variável","un",6,null,0]
["GT38","CODE","Ensaio: Retirada de Amostra Indeformada","un",30,null,{"$f":"ROUND(F37*E37,2)","v":0}]
["GT39","CODE","Ensaio: Permeabilidade \"in situ\"","un",6,null,0]
["TOTAL SERVIÇOS GEOTÉCNICOS",{"$nulls":5},{"$f":"SUM(G8:G38)","v":0}]
["LEGENDA:"]
["Uni - unidade de medição do insumo;"]
["Qde - Quantidade do Insumo (não pode ocorrer alteração pela Licitante)"]
["PU - Preço Unitário (composições padrão da Codevasf, já incluso o FatorK)"]
["PT - Preço Total (incluído encargos, taxas e impostos) - PT = Qde x PU"]

{"sheet":"PFP2.1_FatorKa","index":3,"n_rows":41,"n_cols":6,"rows_kept":41,"cut":false,"hidden":false,"merged":[[40,0,40,5],[39,0,39,5],[38,0,38,5],[37,0,37,5],[22,1,22,3],[29,1,29,3],[30,1,30,3],[28,1,28,3],[25,1,25,3],[26,1,26,3],[27,1,27,3],[33,1,33,3],[31,1,31,3],[16,1,16,3],[9,1,9,3],[10,1,10,3],[11,1,11,3],[12,1,12,3],[0,0,1,4],[2,0,2,5],[5,0,5,1],[5,2,5,4],[4,2,4,4],[3,0,3,5],[6,1,6,3],[32,1,32,3],[34,1,34,3],[35,1,35,3],[18,1,18,3],[19,1,19,3],[20,1,20,3],[21,1,21,3],[23,1,23,3],[24,1,24,3],[7,1,7,3],[17,1,17,3],[8,1,8,3],[13,1,13,3],[14,1,14,3],[15,1,15,3]]}
["DETALHAMENTO DOS ENCARGOS SOCIAIS: Ka",{"$nulls":4},"CODIGO:"]
[{"$nulls":5},"PFP-2.1"]
["NOME DA CONSULTORA:"]
[]
["PROJETO:",null,"CONTRATANTE:",null,null,"BASE: Nov/2020"]
[{"$f":"PFP!A6","v":"Projeto Executivo e Estudos Complementares dos Sistemas de Adução na Região do Seridó no Estado do Rio Grande do Norte "},null,"CODEVASF (SEDE)",null,null,"SINAPI/DF: Jan/2020"]
["Cod","DESCRIÇÃO",null,null,"%","R$"]
["A","ENCARGOS SOCIAIS BÁSICOS",null,null,{"$f":"ROUND(SUM(E9:E17),4)","v":0},{"$f":"ROUND(E8*SUMIF(PFP!$B$8:$B$24,\"MO1\",PFP!$J$8:$J$24),2)","v":0}]
["A1","INSS",null,null,null,{"$f":"ROUND(E9*SUMIF(PFP!$B$8:$B$24,\"MO1\",PFP!$J$8:$J$24),2)","v":0}]
["A2","SESI",null,null,null,{"$f":"ROUND(E10*SUMIF(PFP!$B$8:$B$24,\"MO1\",PFP!$J$8:$J$24),2)","v":0}]
["A3","SENAI",null,null,null,{"$f":"ROUND(E11*SUMIF(PFP!$B$8:$B$24,\"MO1\",PFP!$J$8:$J$24),2)","v":0}]
["A4","INCRA",null,null,null,{"$f":"ROUND(E12*SUMIF(PFP!$B$8:$B$24,\"MO1\",PFP!$J$8:$J$24),2)","v":0}]
["A5","SEBRAE",null,null,null,{"$f":"ROUND(E13*SUMIF(PFP!$B$8:$B$24,\"MO1\",PFP!$J$8:$J$24),2)","v":0}]
["A6","Salário Educação",null,null,null,{"$f":"ROUND(E14*SUMIF(PFP!$B$8:$B$24,\"MO1\",PFP!$J$8:$J$24),2)","v":0}]
["A7","Seguro Contra Acidentes de Trabalho",null,null,null,{"$f":"ROUND(E15*SUMIF(PFP!$B$8:$B$24,\"MO1\",PFP!$J$8:$J$24),2)","v":0}]
["A8","FGTS",null,null,null,{"$f":"ROUND(E16*SUMIF(PFP!$B$8:$B$24,\"MO1\",PFP!$J$8:$J$24),2)","v":0}]
["A9","SECONCI",null,null,null,{"$f":"ROUND(E17*SUMIF(PFP!$B$8:$B$24,\"MO1\",PFP!$J$8:$J$24),2)","v":0}]
["B"," ENCARGOS SOCIAIS QUE RECEBEM INCIDÊNCIA DE \"A\"",null,null,{"$f":"ROUND(SUM(E19:E25),4)","v":0},{"$f":"ROUND(E18*SUMIF(PFP!$B$8:$B$24,\"MO1\",PFP!$J$8:$J$24),2)","v":0}]
["B3","Auxílio Enfermidade",null,null,null,{"$f":"ROUND(E19*SUMIF(PFP!$B$8:$B$24,\"MO1\",PFP!$J$8:$J$24),2)","v":0}]
["B4","13º Salário",null,null,null,{"$f":"ROUND(E20*SUMIF(PFP!$B$8:$B$24,\"MO1\",PFP!$J$8:$J$24),2)","v":0}]
["B5","Licença Paternidade",null,null,null,{"$f":"ROUND(E21*SUMIF(PFP!$B$8:$B$24,\"MO1\",PFP!$J$8:$J$24),2)","v":0}]
["B6","Faltas Justificadas",null,null,null,{"$f":"ROUND(E22*SUMIF(PFP!$B$8:$B$24,\"MO1\",PFP!$J$8:$J$24),2)","v":0}]
["B8","Auxílio Acidente de Trabalho",null,null,null,{"$f":"ROUND(E23*SUMIF(PFP!$B$8:$B$24,\"MO1\",PFP!$J$8:$J$24),2)","v":0}]
["B9","Férias Gozadas",null,null,null,{"$f":"ROUND(E24*SUMIF(PFP!$B$8:$B$24,\"MO1\",PFP!$J$8:$J$24),2)","v":0}]
["B10","Salário Maternidade",null,null,null,{"$f":"ROUND(E25*SUMIF(PFP!$B$8:$B$24,\"MO1\",PFP!$J$8:$J$24),2)","v":0}]
["C"," ENCARGOS SOCIAIS QUE NÃO RECEBEM INCIDÊNCIA DE \"A\"",null,null,{"$f":"ROUND(SUM(E27:E31),4)","v":0},{"$f":"ROUND(E26*SUMIF(PFP!$B$8:$B$24,\"MO1\",PFP!$J$8:$J$24),2)","v":0}]
["C1","Aviso Prévio Indenizado",null,null,null,{"$f":"ROUND(E27*SUMIF(PFP!$B$8:$B$24,\"MO1\",PFP!$J$8:$J$24),2)","v":0}]
["C2","Aviso Prévio Trabalhado",null,null,null,{"$f":"ROUND(E28*SUMIF(PFP!$B$8:$B$24,\"MO1\",PFP!$J$8:$J$24),2)","v":0}]
["C3","Férias Indenizadas",null,null,null,{"$f":"ROUND(E29*SUMIF(PFP!$B$8:$B$24,\"MO1\",PFP!$J$8:$J$24),2)","v":0}]
["C4","Depósito Rescisão Sem Justa Causa",null,null,null,{"$f":"ROUND(E30*SUMIF(PFP!$B$8:$B$24,\"MO1\",PFP!$J$8:$J$24),2)","v":0}]
["C5","Indenização Adicional",null,null,null,{"$f":"ROUND(E31*SUMIF(PFP!$B$8:$B$24,\"MO1\",PFP!$J$8:$J$24),2)","v":0}]
["D"," REINCIDÊNCIAS",null,null,{"$f":"ROUND(SUM(E33:E34),4)","v":0},{"$f":"ROUND(E32*SUMIF(PFP!$B$8:$B$24,\"MO1\",PFP!$J$8:$J$24),2)","v":0}]
["D1","Reincidência de \"A\" sobre \"B\"",null,null,{"$f":"ROUND(E8*E18,4)","v":0},{"$f":"ROUND(E33*SUMIF(PFP!$B$8:$B$24,\"MO1\",PFP!$J$8:$J$24),2)","v":0}]
["D2","Reincidência de \"A\" sobre Aviso Prévio Trabalhado e reincidência do FGTS sobre Aviso Prévio Indenizado",null,null,{"$f":"ROUND((E28*E8)+(E27*E16),4)","v":0},{"$f":"ROUND(E34*SUMIF(PFP!$B$8:$B$24,\"MO1\",PFP!$J$8:$J$24),2)","v":0}]
["K1","ENCARGOS SOCIAIS",null,null,{"$f":"ROUND(E8+E18+E26+E32,4)","v":0},{"$f":"ROUND(E35*SUMIF(PFP!$B$8:$B$24,\"MO1\",PFP!$J$8:$J$24),2)","v":0}]
["Ka","TAXA DE RESSARCIMENTO DE DESPESAS E ENCARGOS SOBRE MO1",null,null,{"$f":"ROUND((1+E35+PFP3_FatorKc!E13)*(1+PFP3_FatorKc!E12)*(1+PFP3_FatorKc!E8),4)","v":1}]
["OBSERVAÇÃO:"]
["1 - DISCRIMINAR OS ENCARGOS SOCIAIS COM SEUS RESPECTIVOS PERCENTUAS TOTALIZANDO OS MESMOS. "]
["2 - APLICAR O  % TOTAL P/ CALCULAR OS E. SOCIAIS INCIDENTES NA MÃO-DE-OBRA COM VÍNCULO PERMANENTE"]
["Ka - Taxa de Ressarcimento de Despesas e Encargos sobre a Mão de Obra COM VINCULO (incide apenas no Insumo Codigo M.O.)"]
["Ka = (1 + K1 + K2) x (1 + K3) x (1 + K4)"]

{"sheet":"PFP2.2_FatorKb","index":4,"n_rows":41,"n_cols":6,"rows_kept":41,"cut":false,"hidden":false,"merged":[[13,1,13,3],[14,1,14,3],[15,1,15,3],[11,1,11,3],[31,1,31,3],[20,1,20,3],[21,1,21,3],[22,1,22,3],[23,1,23,3],[24,1,24,3],[25,1,25,3],[26,1,26,3],[27,1,27,3],[28,1,28,3],[29,1,29,3],[30,1,30,3],[40,0,40,5],[37,0,37,5],[38,0,38,5],[39,0,39,5],[32,1,32,3],[33,1,33,3],[34,1,34,3],[35,1,35,3],[19,1,19,3],[0,0,1,4],[2,0,2,5],[3,0,3,5],[4,2,4,4],[5,0,5,1],[5,2,5,4],[7,1,7,3],[17,1,17,3],[18,1,18,3],[8,1,8,3],[9,1,9,3],[10,1,10,3],[16,1,16,3],[6,1,6,3],[12,1,12,3]]}
["DETALHAMENTO DOS ENCARGOS SOCIAIS: Kb",{"$nulls":4},"CODIGO:"]
[{"$nulls":5},"PFP-2.2"]
["NOME DA CONSULTORA:"]
[]
["PROJETO:",null,"CONTRATANTE:",null,null,"BASE: Nov/2020"]
[{"$f":"PFP!A6","v":"Projeto Executivo e Estudos Complementares dos Sistemas de Adução na Região do Seridó no Estado do Rio Grande do Norte "},null,"CODEVASF (SEDE)",null,null,"SINAPI/DF: Jan/2020"]
["Cod","DESCRIÇÃO",null,null,"%","R$"]
["A","ENCARGOS SOCIAIS BÁSICOS",null,null,{"$f":"ROUND(SUM(E9:E17),4)","v":0},{"$f":"ROUND(E8*SUMIF(PFP!$B$8:$B$24,\"MO2\",PFP!$J$8:$J$24),2)","v":0}]
["A1","INSS",null,null,null,{"$f":"ROUND(E9*SUMIF(PFP!$B$8:$B$24,\"MO2\",PFP!$J$8:$J$24),2)","v":0}]
["A2","SESI",null,null,null,{"$f":"ROUND(E10*SUMIF(PFP!$B$8:$B$24,\"MO2\",PFP!$J$8:$J$24),2)","v":0}]
["A3","SENAI",null,null,null,{"$f":"ROUND(E11*SUMIF(PFP!$B$8:$B$24,\"MO2\",PFP!$J$8:$J$24),2)","v":0}]
["A4","INCRA",null,null,null,{"$f":"ROUND(E12*SUMIF(PFP!$B$8:$B$24,\"MO2\",PFP!$J$8:$J$24),2)","v":0}]
["A5","SEBRAE",null,null,null,{"$f":"ROUND(E13*SUMIF(PFP!$B$8:$B$24,\"MO2\",PFP!$J$8:$J$24),2)","v":0}]
["A6","Salário Educação",null,null,null,{"$f":"ROUND(E14*SUMIF(PFP!$B$8:$B$24,\"MO2\",PFP!$J$8:$J$24),2)","v":0}]
["A7","Seguro Contra Acidentes de Trabalho",null,null,null,{"$f":"ROUND(E15*SUMIF(PFP!$B$8:$B$24,\"MO2\",PFP!$J$8:$J$24),2)","v":0}]
["A8","FGTS",null,null,null,{"$f":"ROUND(E16*SUMIF(PFP!$B$8:$B$24,\"MO2\",PFP!$J$8:$J$24),2)","v":0}]
["A9","SECONCI",null,null,null,{"$f":"ROUND(E17*SUMIF(PFP!$B$8:$B$24,\"MO2\",PFP!$J$8:$J$24),2)","v":0}]
["B"," ENCARGOS SOCIAIS QUE RECEBEM INCIDÊNCIA DE \"A\"",null,null,{"$f":"ROUND(SUM(E19:E25),4)","v":0},{"$f":"ROUND(E18*SUMIF(PFP!$B$8:$B$24,\"MO2\",PFP!$J$8:$J$24),2)","v":0}]
["B3","Auxílio Enfermidade",null,null,null,{"$f":"ROUND(E19*SUMIF(PFP!$B$8:$B$24,\"MO2\",PFP!$J$8:$J$24),2)","v":0}]
["B4","13º Salário",null,null,null,{"$f":"ROUND(E20*SUMIF(PFP!$B$8:$B$24,\"MO2\",PFP!$J$8:$J$24),2)","v":0}]
["B5","Licença Paternidade",null,null,null,{"$f":"ROUND(E21*SUMIF(PFP!$B$8:$B$24,\"MO2\",PFP!$J$8:$J$24),2)","v":0}]
["B6","Faltas Justificadas",null,null,null,{"$f":"ROUND(E22*SUMIF(PFP!$B$8:$B$24,\"MO2\",PFP!$J$8:$J$24),2)","v":0}]
["B8","Auxílio Acidente de Trabalho",null,null,null,{"$f":"ROUND(E23*SUMIF(PFP!$B$8:$B$24,\"MO2\",PFP!$J$8:$J$24),2)","v":0}]
["B9","Férias Gozadas",null,null,null,{"$f":"ROUND(E24*SUMIF(PFP!$B$8:$B$24,\"MO2\",PFP!$J$8:$J$24),2)","v":0}]
["B10","Salário Maternidade",null,null,null,{"$f":"ROUND(E25*SUMIF(PFP!$B$8:$B$24,\"MO2\",PFP!$J$8:$J$24),2)","v":0}]
["C"," ENCARGOS SOCIAIS QUE NÃO RECEBEM INCIDÊNCIA DE \"A\"",null,null,{"$f":"ROUND(SUM(E27:E31),4)","v":0},{"$f":"ROUND(E26*SUMIF(PFP!$B$8:$B$24,\"MO2\",PFP!$J$8:$J$24),2)","v":0}]
["C1","Aviso Prévio Indenizado",null,null,null,{"$f":"ROUND(E27*SUMIF(PFP!$B$8:$B$24,\"MO2\",PFP!$J$8:$J$24),2)","v":0}]
["C2","Aviso Prévio Trabalhado",null,null,null,{"$f":"ROUND(E28*SUMIF(PFP!$B$8:$B$24,\"MO2\",PFP!$J$8:$J$24),2)","v":0}]
["C3","Férias Indenizadas",null,null,null,{"$f":"ROUND(E29*SUMIF(PFP!$B$8:$B$24,\"MO2\",PFP!$J$8:$J$24),2)","v":0}]
["C4","Depósito Rescisão Sem Justa Causa",null,null,null,{"$f":"ROUND(E30*SUMIF(PFP!$B$8:$B$24,\"MO2\",PFP!$J$8:$J$24),2)","v":0}]
["C5","Indenização Adicional",null,null,null,{"$f":"ROUND(E31*SUMIF(PFP!$B$8:$B$24,\"MO2\",PFP!$J$8:$J$24),2)","v":0}]
["D"," REINCIDÊNCIAS",null,null,{"$f":"ROUND(SUM(E33:E34),4)","v":0},{"$f":"ROUND(E32*SUMIF(PFP!$B$8:$B$24,\"MO2\",PFP!$J$8:$J$24),2)","v":0}]
["D1","Reincidência de \"A\" sobre \"B\"",null,null,{"$f":"ROUND(E8*E18,4)","v":0},{"$f":"ROUND(E33*SUMIF(PFP!$B$8:$B$24,\"MO2\",PFP!$J$8:$J$24),2)","v":0}]
["D2","Reincidência de \"A\" sobre Aviso Prévio Trabalhado e reincidência do FGTS sobre Aviso Prévio Indenizado",null,null,{"$f":"ROUND(E8*E28,4)+ROUND(E27*E11,4)","v":0},{"$f":"ROUND(E34*SUMIF(PFP!$B$8:$B$24,\"MO2\",PFP!$J$8:$J$24),2)","v":0}]
["K1","ENCARGOS SOCIAIS",null,null,{"$f":"ROUND(E8+E18+E26+E32,4)","v":0},{"$f":"ROUND(E35*SUMIF(PFP!$B$8:$B$24,\"MO2\",PFP!$J$8:$J$24),2)","v":0}]
["Kb","TAXA DE RESSARCIMENTO DE DESPESAS E ENCARGOS SOBRE MO2",null,null,{"$f":"ROUND((1+E35+PFP3_FatorKc!E13)*(1+PFP3_FatorKc!E12)*(1+PFP3_FatorKc!E8),4)","v":1}]
["OBSERVAÇÃO:"]
["1 - DISCRIMINAR OS ENCARGOS SOCIAIS COM SEUS RESPECTIVOS PERCENTUAS TOTALIZANDO OS MESMOS. "]
["2 - APLICAR O % TOTAL P/ CALCULAR OS E. SOCIAIS INCIDENTES NA MÃO-DE-OBRA SEM VÍNCULO PERMANENTE"]
["Kb - Taxa de Ressarcimento de Despesas e Encargos sobre a Mão de Obra SEM VINCULO (incide apenas no Insumo Codigo M.O.)"]
["Kb = (1 + K1 + K2) x (1 + K3) x (1 + K4)"]

{"sheet":"PFP3_FatorKc","index":5,"n_rows":35,"n_cols":6,"rows_kept":35,"cut":false,"hidden":false,"merged":[[32,0,32,5],[12,1,12,3],[11,1,11,3],[8,1,8,2],[9,1,9,2],[10,1,10,2],[7,1,7,2],[25,0,25,5],[6,1,6,2],[0,0,1,4],[2,0,2,5],[5,0,5,1],[5,2,5,4],[4,2,4,4],[3,0,3,5],[33,0,33,5],[34,0,34,5],[16,1,16,3],[13,1,13,3],[14,1,14,3],[15,1,15,3],[21,0,21,5],[26,0,26,5],[27,0,27,5],[22,0,22,5],[23,0,23,5],[24,0,24,5],[28,0,28,5],[29,0,29,5],[30,0,30,5],[31,0,31,5]]}
["DESPESAS FISCAIS E CUSTOS DIVERSOS: Kc",{"$nulls":4},"CODIGO:"]
[{"$nulls":5},"PFP-3"]
["NOME DA CONSULTORA:"]
[]
["PROJETO:",null,"CONTRATANTE:",null,null,"BASE: Nov/2020"]
[{"$f":"PFP!A6","v":"Projeto Executivo e Estudos Complementares dos Sistemas de Adução na Região do Seridó no Estado do Rio Grande do Norte "},null,"CODEVASF (SEDE)",null,null,"PROP: Nov/2020"]
["Cod","DESCRIÇÃO1",null,"% preço2","% custo4","R$"]
["K4","TAXAS E IMPOSTOS",null,{"$f":"ROUND(D9+D10+D11,4)","v":0},{"$f":"ROUND(E9+E10+E11,4)","v":0},{"$f":"E8*SUM(SUMIF(PFP!$B$8:$B$24,\"MO1\",PFP!$J$8:$J$24)*(1+PFP2.1_FatorKa!$E$35)+SUMIF(PFP!$B$8:$B$24,\"MO2\",PFP!$J$8:$J$24)*(1+PFP2.2_FatorKb!$E$35)+SUMIF(PFP!$B$8:$B$24,\"<>MO*\",PFP!$J$8:$J$24)+$F$13+$F$12)","v":0}]
["K4.1","ISS",null,null,{"$f":"ROUND((1/(1-$D$8))*D9,4)","v":0},{"$f":"E9*SUM(SUMIF(PFP!$B$8:$B$24,\"MO1\",PFP!$J$8:$J$24)*(1+PFP2.1_FatorKa!$E$35)+SUMIF(PFP!$B$8:$B$24,\"MO2\",PFP!$J$8:$J$24)*(1+PFP2.2_FatorKb!$E$35)+SUMIF(PFP!$B$8:$B$24,\"<>MO*\",PFP!$J$8:$J$24)+$F$13+$F$12)","v":0}]
["K4.2","PIS3 - aliquota efetiva com percentual-desconto",null,null,{"$f":"ROUND((1/(1-$D$8))*D10,4)","v":0},{"$f":"E10*SUM(SUMIF(PFP!$B$8:$B$24,\"MO1\",PFP!$J$8:$J$24)*(1+PFP2.1_FatorKa!$E$35)+SUMIF(PFP!$B$8:$B$24,\"MO2\",PFP!$J$8:$J$24)*(1+PFP2.2_FatorKb!$E$35)+SUMIF(PFP!$B$8:$B$24,\"<>MO*\",PFP!$J$8:$J$24)+$F$13+$F$12)","v":0}]
["K4.3","COFINS3 - aliquota efetiva com percentual-desconto",null,null,{"$f":"ROUND((1/(1-$D$8))*D11,4)","v":0},{"$f":"E11*SUM(SUMIF(PFP!$B$8:$B$24,\"MO1\",PFP!$J$8:$J$24)*(1+PFP2.1_FatorKa!$E$35)+SUMIF(PFP!$B$8:$B$24,\"MO2\",PFP!$J$8:$J$24)*(1+PFP2.2_FatorKb!$E$35)+SUMIF(PFP!$B$8:$B$24,\"<>MO*\",PFP!$J$8:$J$24)+$F$13+$F$12)","v":0}]
["K3","REMUNERAÇÃO DA EMPRESA (LUCRO)",null,null,0,{"$f":"E12*SUM(SUMIF(PFP!$B$8:$B$24,\"MO1\",PFP!$J$8:$J$24)*(1+PFP2.1_FatorKa!$E$35)+SUMIF(PFP!$B$8:$B$24,\"MO2\",PFP!$J$8:$J$24)*(1+PFP2.2_FatorKb!$E$35)+SUMIF(PFP!$B$8:$B$24,\"<>MO*\",PFP!$J$8:$J$24)+$F$13)","v":0}]
["K2","CUSTOS DA ADMINISTRAÇÃO CENTRAL",null,null,{"$f":"ROUND(SUM(E14:E16),4)","v":0},{"$f":"ROUND(E13*SUMIF(PFP!$B$8:$B$24,\"MO*\",PFP!$J$8:$J$24),2)","v":0}]
["K2.1","Custos da administração central da empresa (diretoria, pessoal técnico de apoio e pessoal administrativo não diretamente vinculado à prestação dos serviços)",null,null,null,{"$f":"ROUND(E14*SUMIF(PFP!$B$8:$B$24,\"MO*\",PFP!$J$8:$J$24),2)","v":0}]
["K2.2","Outras despesas que afetam o custo de produção como treinamento, biblioteca, programa de qualidade, programa de benefícios, auditoria interna e externa",null,null,null,{"$f":"ROUND(E15*SUMIF(PFP!$B$8:$B$24,\"MO*\",PFP!$J$8:$J$24),2)","v":0}]
["K2.3","Despesas fixas e variaveis com patrimônio, aluguéis, comunicação, manutenção e transporte não diretamente relacionados com o custo direto dos serviços",null,null,null,{"$f":"ROUND(E16*SUMIF(PFP!$B$8:$B$24,\"MO*\",PFP!$J$8:$J$24),2)","v":0}]
["Kc","TAXA RESSARCIMENTO DE DESPESAS SOBRE CUSTOS DIVERSOS",null,null,{"$f":"ROUND((1+E12)*(1+E8),4)","v":1}]
["NOME DO INFORMANTE:",null,null,null,"QUALIFICAÇÃO:"]
[]
["ASSINATURA:",null,null,null,"DATA:"]
[]
["Observação:"]
["1 - RELACIONAR OS CUSTOS DE ADMINISTRAÇÃO COM RESPECTIVOS PERCENTUAIS INCIDENTES NA MÃO -DE-OBRA"]
["1 - DISCRIMINAR OS TRIBUTOS QUE INCIDEM SOBRE OS CUSTOS DA PRESTAÇÃO DOS SERVIÇOS"]
["2 - K4 = INDICAR % DE CADA TRIBUTO E A SOMA DOS MESMOS (ex: ISS 5% + PIS 1,65% + COFINS 7,60% = 14,25%)"]
["3 - PIS e COFINS, Regime de Incidencia Acumulativa (0,65% e 3,00% - sem percentual de desconto) ou em Regime de Incidencia Não Acumulativa (1,65% e 7,60% - aplicável percentual de desconto) de acordo com a forma de apuração do lucro no IRPJ. APRESENTAR COMPROVANTES de aproveitamento de créditos tributários dos últimos 12 meses em caso de aplicação de \"percentual de desconto\"."]
["4 - AS DESPESAS FISCAIS (K4) INCIDEM SOBRE O TOTAL DA FATURA E NÃO SOBRE OS CUSTOS INCORRIDOS, "]
["     DEVENDO SER CALCULADO O K4' APLICANDO-SE A SEGUINTE FÓRMULA:"]
["     K4' = { [ 1 / ( 1 - K4) ] - 1 } x 100"]
[{"$f":"CONCATENATE(\"     K4' = { [ 1 / ( 1 - \",D8,\" ) ] - 1 } x 100\")","v":"     K4' = { [ 1 / ( 1 - 0 ) ] - 1 } x 100"}]
["Kc - Taxa de Ressarcimento de Despesas sobre Custos Diversos (incide sobre os Insumos Codigo DP e EM)"]
["Kc = (1 + K3) x (1 + K4)"]
["K2 - Incide sobre o Custo Total (CT) da Mão de Obra (MO* = MO1 + MO2)"]
["K3 - Incide sobre o Custo Total (CT) Mão de Obra com encargos (MO1 x Ka ou MO2 x Kb), demais Custos (DP e EM), e Custos da Administração Central (K2)"]
["K4 -  Incide sobre o Custo Total (CT) Mão de Obra com encargos (MO1 x Ka ou MO2 x Kb), demais Custos (DP e EM), e Custos da Administração Central (K2) e Lucro (K3)"]